bitfinex/quotes_BTCUSD_20260315
["timestamp","ask_amount","ask_price","bid_price","bid_amount"]
[1773541292491,0.12755306,71315.0,71307.0,0.13837472]
[1773541292699,0.12755306,71315.0,71308.0,0.13837472]
[1773541292874,0.12755306,71315.0,71309.0,0.13837472]
[1773541293078,0.12755306,71315.0,71304.0,0.0014]
[1773541293400,0.12755306,71315.0,71305.0,0.13836767]
[1773541293606,0.12755306,71315.0,71306.0,0.13836767]
[1773541293775,0.12755306,71315.0,71307.0,0.13836767]
[1773541293950,0.12755306,71315.0,71308.0,0.13836767]
[1773541294157,0.12755306,71315.0,71309.0,0.13836767]
[1773541294363,0.12755306,71315.0,71304.0,0.0014]
[1773541294560,0.12755306,71315.0,71305.0,0.13836574]
[1773541294766,0.12755306,71315.0,71306.0,0.13836574]
[1773541295085,0.12755306,71315.0,71307.0,0.13836574]
[1773541295266,0.12755306,71315.0,71308.0,0.13836574]
[1773541295476,0.12755306,71315.0,71304.0,0.0014]
[1773541295673,0.12755306,71315.0,71305.0,0.13836707]
[1773541295877,0.12755306,71315.0,71306.0,0.13836707]
[1773541296105,0.12755306,71315.0,71307.0,0.13836707]
[1773541296410,0.12755306,71315.0,71308.0,0.13836707]
[1773541296640,0.12755306,71315.0,71304.0,0.0014]
[1773541296857,0.12755306,71315.0,71305.0,0.13836509]
[1773541296999,0.12755306,71315.0,71306.0,0.13836509]
[1773541297207,0.12755306,71315.0,71307.0,0.13836509]
[1773541297375,0.12755306,71315.0,71308.0,0.13836509]
[1773541297584,0.12755306,71315.0,71309.0,0.13836738]
[1773541297789,0.12755306,71315.0,71304.0,0.0014]
[1773541297995,0.12755306,71315.0,71305.0,0.13836783]
[1773541298242,0.12755306,71315.0,71306.0,0.13836783]
[1773541298442,0.12755306,71315.0,71307.0,0.13836783]
[1773541298644,0.12755306,71315.0,71308.0,0.13836783]
[1773541298940,0.07011147,71315.0,71304.0,0.0014]
[1773541299245,0.07011147,71315.0,71305.0,0.13837206]
[1773541299419,0.07011147,71315.0,71306.0,0.13837206]
[1773541299624,0.07011147,71315.0,71307.0,0.13837206]
[1773541299824,0.07011147,71315.0,71308.0,0.13837206]
[1773541300039,0.07011147,71315.0,71309.0,0.13837206]
[1773541300238,0.07011147,71315.0,71304.0,0.0014]
[1773541300513,0.05748672,71319.0,71304.0,0.0014]
[1773541300514,0.07032304,71324.0,71305.0,0.19739865]
[1773541300710,0.07032304,71324.0,71310.0,0.05901349]
[1773541300911,0.07032304,71324.0,71311.0,0.13978516]
[1773541301052,0.07032304,71324.0,71312.0,0.13838516]
[1773541301256,0.07032304,71324.0,71313.0,0.13838516]
[1773541301467,0.07032304,71324.0,71314.0,0.13838516]
[1773541301846,0.12933653,71324.0,71308.0,0.11078862]
[1773541302044,0.05901349,71320.0,71307.0,0.0014]
[1773541302205,0.05744159,71319.0,71307.0,0.0014]
[1773541305220,0.05664874,71317.0,71307.0,0.0014]
[1773541305415,0.05664874,71317.0,71305.0,4.513e-05]
[1773541307542,0.05664874,71315.0,71305.0,4.513e-05]
[1773541308422,0.07011049,71316.0,71305.0,4.513e-05]
[1773541308575,0.07011049,71316.0,71306.0,0.00401641]
[1773541308746,0.02083545,71316.0,71306.0,0.00401641]
[1773541310224,0.02083545,71316.0,71305.0,4.513e-05]
[1773541313926,0.02083545,71316.0,71306.0,0.1384334]
[1773541314130,0.02083545,71316.0,71307.0,0.1384334]
[1773541314328,0.02083545,71316.0,71305.0,4.513e-05]
[1773541314329,0.02083545,71316.0,71308.0,0.1384334]
[1773541314646,0.02083545,71316.0,71309.0,0.1384334]
[1773541314814,0.02083545,71316.0,71310.0,0.1384334]
[1773541315014,0.02083545,71316.0,71311.0,0.1384334]
[1773541315241,0.02083545,71316.0,71305.0,4.513e-05]
[1773541315242,0.02083545,71316.0,71312.0,0.1384334]
[1773541315562,0.02083545,71316.0,71305.0,4.513e-05]
[1773541315720,0.02083545,71316.0,71306.0,0.13849084]
[1773541315921,0.0563739,71315.0,71305.0,4.513e-05]
[1773541316137,0.0563739,71315.0,71306.0,0.0014]
[1773541316897,0.0563739,71315.0,71307.0,0.0014]
[1773541317177,0.0563739,71315.0,71306.0,0.0014]
[1773541318222,0.12888273,71314.0,71306.0,0.0014]
[1773541318837,0.05926579,71313.0,71306.0,0.0014]
[1773541320258,0.07011442,71312.0,71306.0,0.0014]
[1773541320863,0.07011442,71312.0,71305.0,0.0014]
[1773541321959,0.05917306,71311.0,71305.0,0.0014]
[1773541322677,0.07011639,71310.0,71299.0,0.07012701]
[1773541322876,0.07011639,71310.0,71300.0,0.0014]
[1773541323677,0.07011639,71310.0,71301.0,0.0014]
[1773541323886,0.12919007,71310.0,71301.0,0.0014]
[1773541324479,0.07011639,71310.0,71301.0,0.0014]
[1773541324839,0.1290911,71311.0,71306.0,0.0002]
[1773541329704,0.07011442,71312.0,71306.0,0.0002]
[1773541329873,0.05899779,71310.0,71301.0,0.0014]
[1773541330074,0.05899779,71310.0,71298.0,0.0002]
[1773541330075,0.05880454,71309.0,71298.0,0.0002]
[1773541330384,0.05880454,71309.0,71301.0,0.0014]
[1773541330555,0.06211247,71309.0,71297.0,0.0002]
[1773541330876,0.05864346,71308.0,71295.0,0.0014]
[1773541331098,0.05899779,71305.0,71295.0,4.509e-05]
[1773541331302,0.05836101,71304.0,71294.0,0.0002]
[1773541331737,0.05836101,71304.0,71298.0,0.0002]
[1773541331926,0.05833846,71302.0,71298.0,0.0002]
[1773541333566,0.05833846,71302.0,71294.0,0.0002]
[1773541333771,0.05833846,71302.0,71295.0,0.13851373]
[1773541333945,0.13302377,71301.0,71294.0,0.0002]
[1773541334147,0.13302377,71301.0,71295.0,0.13851415]
[1773541334442,0.13302377,71301.0,71294.0,0.0002]
[1773541334665,0.13302377,71301.0,71295.0,0.13850749]
[1773541335001,0.06289853,71300.0,71294.0,0.0002]
[1773541335180,0.06289853,71300.0,71295.0,0.13849078]
[1773541335381,0.06289853,71300.0,71294.0,0.0002]
[1773541336237,0.13293593,71299.0,71294.0,0.0002]
[1773541336658,0.06280872,71298.0,71291.0,0.0016]
[1773541338063,0.07012917,71297.0,71291.0,0.0016]
[1773541341505,0.07012426,71303.0,71291.0,0.0016]
[1773541341706,0.07012426,71303.0,71291.0,0.0717348]
[1773541341908,0.07012426,71303.0,71291.0,0.0002]
[1773541342208,0.06280872,71302.0,71291.0,0.0002]
[1773541342397,0.07012426,71303.0,71291.0,0.0002]
[1773541342576,0.07012426,71303.0,71292.0,0.0014]
[1773541343688,0.06280872,71302.0,71292.0,0.0014]
[1773541344342,0.06280872,71301.0,71279.0,0.0002]
[1773541344636,0.06280872,71301.0,71286.0,0.0014]
[1773541344637,0.06707259,71295.0,71286.0,0.0014]
[1773541344851,0.06716277,71295.0,71281.0,0.0014]
[1773541344993,0.05899779,71291.0,71281.0,0.0014]
[1773541345196,0.06583818,71290.0,71282.0,0.0014]
[1773541345385,0.06583818,71290.0,71279.0,0.0014]
[1773541345792,0.06583818,71288.0,71279.0,0.0014]
[1773541345991,0.06583818,71288.0,71284.0,0.0002]
[1773541347511,0.06583818,71288.0,71279.0,0.0014]
[1773541347828,0.07013901,71287.0,71279.0,0.0014]
[1773541348034,0.13587719,71287.0,71279.0,0.0014]
[1773541349026,0.05899779,71291.0,71279.0,0.0014]
[1773541349027,0.07012108,71306.0,71280.0,0.13832622]
[1773541349201,0.07012108,71306.0,71281.0,0.13832622]
[1773541349441,0.07012032,71308.0,71290.0,0.05899779]
[1773541349664,0.07012032,71308.0,71291.0,0.13972622]
[1773541349829,0.07012032,71308.0,71292.0,0.13972622]
[1773541350033,0.07012032,71308.0,71294.0,0.07013212]
[1773541350816,0.07012032,71308.0,71292.0,0.0014]
[1773541351015,0.07012032,71308.0,71293.0,0.13826494]
[1773541351382,0.07012032,71308.0,71292.0,0.07153377]
[1773541351529,0.06994074,71308.0,71293.0,0.13827527]
[1773541351718,0.06994074,71308.0,71292.0,0.07153377]
[1773541351907,0.06994074,71308.0,71293.0,0.13827025]
[1773541352108,0.06994074,71308.0,71294.0,0.20840234]
[1773541352353,0.06994074,71308.0,71295.0,0.13827025]
[1773541353735,0.06573818,71307.0,71285.0,0.11078862]
[1773541353935,0.06573818,71305.0,71286.0,0.0014]
[1773541354301,0.06573818,71303.0,71287.0,0.0014]
[1773541355825,0.05705572,71296.0,71277.0,0.0002]
[1773541356016,0.05705572,71289.0,71277.0,0.00030721]
[1773541356219,0.07013803,71288.0,71277.0,0.00030721]
[1773541356398,0.07013311,71293.0,71278.0,0.05221629]
[1773541357489,0.07013311,71293.0,71277.0,0.00030721]
[1773541357692,0.05705572,71289.0,71277.0,0.00030721]
[1773541358176,0.07013704,71289.0,71277.0,0.00030721]
[1773541360452,0.05705572,71288.0,71277.0,0.00030721]
[1773541360794,0.05705572,71288.0,71278.0,0.0014]
[1773541364874,0.05705572,71286.0,71278.0,0.0014]
[1773541365075,0.07013212,71294.0,71278.0,0.0014]
[1773541365280,0.07013212,71294.0,71278.0,0.12424483]
[1773541365949,0.07013212,71294.0,71278.0,0.05409795]
[1773541366300,0.07013212,71294.0,71278.0,0.05509795]
[1773541366506,0.07013212,71294.0,71278.0,0.05409795]
[1773541367608,0.07013212,71294.0,71278.0,0.0014]
[1773541367794,0.12718784,71294.0,71278.0,0.0014]
[1773541367943,0.12718784,71294.0,71277.0,0.00030721]
[1773541367944,0.05705572,71289.0,71279.0,0.0014]
[1773541368147,0.05633717,71289.0,71279.0,0.0014]
[1773541368978,0.05633717,71289.0,71280.0,0.0014]
[1773541369177,0.00035938,71288.0,71280.0,0.0014]
[1773541369443,0.00035938,71288.0,71268.0,0.0014]
[1773541369444,0.05705572,71281.0,71268.0,0.0014]
[1773541369667,0.0701459,71280.0,71268.0,0.0014]
[1773541371863,0.00035938,71279.0,71268.0,0.0014]
[1773541373500,0.00035938,71279.0,71264.0,0.0014]
[1773541373501,0.05445678,71277.0,71264.0,0.0014]
[1773541373702,0.05899779,71272.0,71264.0,0.0014]
[1773541373981,0.05899779,71272.0,71269.0,0.0002]
[1773541375907,0.06997619,71270.0,71269.0,0.0002]
[1773541376047,0.05445678,71269.0,71262.0,0.0018053]
[1773541376982,0.05445678,71269.0,71258.0,0.0014]
[1773541377141,0.06997619,71270.0,71259.0,0.05499065]
[1773541377553,0.06997619,71270.0,71258.0,0.0014]
[1773541377775,0.12897398,71270.0,71258.0,0.0014]
[1773541378196,0.00035938,71268.0,71258.0,0.0017088]
[1773541378608,0.00035938,71268.0,71259.0,0.0014]
[1773541378813,0.05481616,71268.0,71259.0,0.0014]
[1773541379195,0.05481616,71268.0,71254.0,0.00155]
[1773541380286,0.05899779,71264.0,71254.0,0.00155]
[1773541380475,0.05445678,71266.0,71254.0,0.00155]
[1773541381042,0.05445678,71263.0,71254.0,0.00155]
[1773541381437,0.05445678,71259.0,71247.0,0.0014]
[1773541382642,0.05445678,71259.0,71189.0,0.08755552]
[1773541382643,0.05445678,71257.0,71237.0,0.0014]
[1773541382842,0.05899779,71251.0,71237.0,0.0014]
[1773541383446,0.05899779,71251.0,71246.0,0.0002]
[1773541383665,0.05445678,71255.0,71246.0,0.0002]
[1773541385075,0.05445678,71255.0,71239.0,0.0002]
[1773541385076,0.05445678,71253.0,71239.0,0.0002]
[1773541385273,0.05899779,71249.0,71236.0,0.0014]
[1773541385430,0.05899779,71246.0,71236.0,0.0014]
[1773541385630,0.11345457,71246.0,71237.0,0.0014]
[1773541385991,0.05445678,71246.0,71237.0,0.0014]
[1773541387085,0.07018036,71245.0,71237.0,0.0014]
[1773541388227,0.00035938,71244.0,71237.0,0.0014]
[1773541390341,0.05445678,71242.0,71233.0,0.0014]
[1773541391222,0.05445678,71242.0,71229.0,0.0014]
[1773541391413,0.05445678,71242.0,71221.0,0.04096036]
[1773541391579,0.12929846,71243.0,71226.0,0.0014]
[1773541391580,0.05911613,71235.0,71226.0,0.0014]
[1773541391782,0.05445678,71234.0,71226.0,0.0014]
[1773541392215,0.05911613,71235.0,71229.0,0.0002]
[1773541392630,0.0701912,71234.0,71229.0,0.0002]
[1773541392828,0.0701912,71234.0,71229.0,0.00055791]
[1773541393814,0.00035938,71233.0,71229.0,0.00055791]
[1773541394025,0.0701912,71236.0,71229.0,0.00055791]
[1773541394421,0.07018858,71237.0,71229.0,0.00055791]
[1773541394623,0.07018858,71237.0,71226.0,0.0014]
[1773541394827,0.07018858,71237.0,71226.0,0.00150736]
[1773541395030,0.05445678,71236.0,71226.0,0.00150736]
[1773541396442,0.05445678,71235.0,71226.0,0.00150736]
[1773541396645,0.05445678,71233.0,71226.0,0.00150736]
[1773541396872,0.07018816,71238.0,71226.0,0.00150736]
[1773541397104,0.07018952,71236.0,71226.0,0.00150736]
[1773541398422,0.07018952,71236.0,71227.0,0.0014]
[1773541398624,0.0701774,71248.0,71229.0,0.07019612]
[1773541398826,0.0701774,71248.0,71230.0,0.03214583]
[1773541399054,0.12929353,71250.0,71230.0,0.03214583]
[1773541401247,0.12929353,71250.0,71232.0,0.03531255]
[1773541404663,0.12929353,71250.0,71233.0,0.07159218]
[1773541404862,0.18469868,71250.0,71233.0,0.07159218]
[1773541406652,0.12558186,71249.0,71233.0,0.07159218]
[1773541406853,0.05540515,71248.0,71233.0,0.07159218]
[1773541407526,0.05540515,71248.0,71233.0,0.07019218]
[1773541407726,0.05540515,71248.0,71234.0,0.0014]
[1773541408000,0.05540515,71248.0,71233.0,0.07019218]
[1773541408221,0.05540515,71248.0,71234.0,0.0014]
[1773541408559,0.05540515,71248.0,71235.0,0.0014]
[1773541408792,0.07017839,71247.0,71236.0,0.07018923]
[1773541409191,0.07017839,71247.0,71237.0,0.0014]
[1773541409999,0.12929222,71250.0,71237.0,0.0014]
[1773541410202,0.07017609,71250.0,71237.0,0.0014]
[1773541410973,0.07017609,71250.0,71237.0,0.07158768]
[1773541411375,0.18469737,71250.0,71237.0,0.0014]
[1773541412585,0.12929222,71250.0,71237.0,0.0014]
[1773541412787,0.18469737,71250.0,71237.0,0.0014]
[1773541415911,0.18469737,71250.0,71237.0,0.0715879]
[1773541416669,0.12929222,71250.0,71237.0,0.0715879]
[1773541417281,0.05540515,71249.0,71237.0,0.0014]
[1773541419304,0.05540515,71247.0,71235.0,0.0014]
[1773541419711,0.05680515,71247.0,71235.0,0.0014]
[1773541421330,0.07017937,71246.0,71235.0,0.0014]
[1773541421510,0.07017907,71247.0,71236.0,0.03419291]
[1773541421898,0.07017907,71247.0,71235.0,0.07159008]
[1773541422105,0.05540515,71246.0,71235.0,0.07159008]
[1773541423398,0.07017907,71247.0,71235.0,0.07159008]
[1773541423599,0.07017805,71248.0,71235.0,0.07159008]
[1773541428834,0.07017839,71249.0,71235.0,0.07159008]
[1773541434734,0.07017265,71253.0,71236.0,0.03735493]
[1773541434891,0.07039057,71255.0,71237.0,0.13895246]
[1773541434892,0.07039147,71255.0,71237.0,0.13895246]
[1773541435088,0.07039147,71255.0,71235.0,0.07159008]
[1773541435089,0.07039147,71255.0,71240.0,0.10751503]
[1773541435432,0.07039147,71255.0,71241.0,0.14035246]
[1773541435728,0.07039147,71255.0,71242.0,0.13895246]
[1773541435887,0.07039147,71255.0,71241.0,0.0014]
[1773541436092,0.07039147,71255.0,71242.0,0.13894182]
[1773541436301,0.07039147,71255.0,71241.0,0.0014]
[1773541436501,0.07039147,71255.0,71242.0,0.13893722]
[1773541436705,0.07039147,71255.0,71241.0,0.0014]
[1773541436901,0.07039147,71255.0,71242.0,0.13893715]
[1773541437106,0.07039147,71255.0,71241.0,0.0014]
[1773541437341,0.07039147,71255.0,71243.0,0.07018233]
[1773541438525,0.00022001,71255.0,71243.0,0.07018233]
[1773541438827,0.07039088,71255.0,71244.0,0.13891847]
[1773541439021,0.07039088,71255.0,71245.0,0.13891847]
[1773541439224,0.07039088,71255.0,71243.0,0.07018233]
[1773541439426,0.07039088,71255.0,71244.0,0.13889481]
[1773541439427,0.07039099,71255.0,71244.0,0.13889481]
[1773541439649,0.07039099,71255.0,71245.0,0.13889481]
[1773541439847,0.07039099,71255.0,71243.0,0.10740769]
[1773541439848,0.00022001,71255.0,71246.0,0.13889481]
[1773541440110,0.00022001,71255.0,71247.0,0.13889481]
[1773541440281,0.00022001,71255.0,71248.0,0.13889481]
[1773541440486,0.0703906,71255.0,71248.0,0.0014]
[1773541440787,0.0703906,71255.0,71249.0,0.13887553]
[1773541441019,0.05727706,71254.0,71248.0,0.0014]
[1773541441224,0.05727706,71254.0,71238.0,0.11100362]
[1773541441439,0.05727706,71252.0,71239.0,0.14025708]
[1773541441638,0.05727706,71252.0,71233.0,0.0002]
[1773541441639,0.05727706,71249.0,71233.0,0.0002]
[1773541441854,0.05727706,71244.0,71233.0,0.00030736]
[1773541442028,0.05727706,71244.0,71234.0,0.0014]
[1773541442244,0.05727706,71244.0,71235.0,0.0014]
[1773541442440,0.05727706,71244.0,71233.0,0.00030736]
[1773541442592,0.05727706,71244.0,71233.0,0.00170736]
[1773541443312,0.05727706,71244.0,71231.0,0.0014]
[1773541443313,0.05727706,71240.0,71231.0,0.0014]
[1773541443513,0.05738426,71240.0,71231.0,0.0014]
[1773541445425,0.12746333,71239.0,71230.0,0.0002]
[1773541445636,0.12746333,71239.0,71231.0,0.0014]
[1773541446217,0.05727706,71238.0,71231.0,0.0014]
[1773541446736,0.05727706,71238.0,71228.0,0.0014]
[1773541446939,0.05727706,71238.0,71225.0,0.00055091]
[1773541447240,0.05727706,71238.0,71227.0,0.0014]
[1773541447649,0.05727706,71236.0,71227.0,0.0014]
[1773541449848,0.05727706,71236.0,71225.0,0.00055091]
[1773541449849,0.05727706,71234.0,71217.0,0.11100362]
[1773541450056,0.05727706,71229.0,71218.0,0.0014]
[1773541450454,0.05912794,71230.0,71216.0,0.0702088]
[1773541450656,0.05912794,71230.0,71217.0,0.0014]
[1773541450982,0.05912794,71230.0,71218.0,0.0014]
[1773541451549,0.116405,71230.0,71218.0,0.0014]
[1773541451775,0.05727706,71229.0,71218.0,0.0014]
[1773541451948,0.07019711,71228.0,71218.0,0.0014]
[1773541452150,0.12747417,71228.0,71218.0,0.0014]
[1773541452576,0.12747417,71228.0,71227.0,0.0002]
[1773541452771,0.07019711,71228.0,71216.0,0.07020886]
[1773541452990,0.05727706,71227.0,71219.0,0.0002]
[1773541453898,0.07019711,71228.0,71219.0,0.0002]
[1773541454055,0.07019711,71228.0,71220.0,0.0014]
[1773541454659,0.07119711,71228.0,71220.0,0.0014]
[1773541454961,0.07019711,71228.0,71220.0,0.0014]
[1773541457329,0.07019711,71228.0,71207.0,0.000351]
[1773541457330,0.05727706,71227.0,71207.0,0.000351]
[1773541457526,0.05727706,71227.0,71208.0,0.0014]
[1773541457527,0.05727706,71219.0,71208.0,0.0014]
[1773541459081,0.05727706,71219.0,71207.0,0.000351]
[1773541459082,0.05727706,71219.0,71201.0,0.0702229]
[1773541459254,0.05727706,71213.0,71202.0,0.0014]
[1773541459395,0.05715706,71213.0,71202.0,0.0014]
[1773541459822,0.05715706,71213.0,71199.0,0.07022568]
[1773541460025,0.05715706,71213.0,71201.0,0.0014]
[1773541460488,0.05715706,71213.0,71201.0,0.00150736]
[1773541460692,0.05727706,71210.0,71202.0,0.0014]
[1773541461455,0.1274929,71209.0,71202.0,0.0014]
[1773541461666,0.05739695,71208.0,71202.0,0.0014]
[1773541462852,0.05739695,71208.0,71196.0,0.0002261]
[1773541463185,0.05750409,71208.0,71197.0,0.0014]
[1773541463384,0.07021781,71207.0,71197.0,0.0014]
[1773541463585,0.12761476,71207.0,71197.0,0.0014]
[1773541463990,0.05739695,71206.0,71197.0,0.0014]
[1773541465685,0.07021978,71205.0,71197.0,0.0014]
[1773541465881,0.07021978,71205.0,71198.0,0.0014]
[1773541466916,0.07020677,71219.0,71198.0,0.0014]
[1773541467115,0.00044611,71240.0,71201.0,0.05062864]
[1773541467116,0.07020105,71225.0,71201.0,0.05062864]
[1773541467436,0.127598,71225.0,71201.0,0.05062864]
[1773541467829,0.127598,71225.0,71203.0,0.05058804]
[1773541468425,0.127598,71225.0,71205.0,0.05058804]
[1773541468592,0.05739695,71224.0,71205.0,0.05058804]
[1773541468991,0.05912794,71220.0,71204.0,0.0014]
[1773541469231,0.05739695,71219.0,71202.0,0.07022274]
[1773541469612,0.05739695,71219.0,71203.0,0.0014]
[1773541469818,0.05739695,71217.0,71204.0,0.07162077]
[1773541470024,0.05739695,71217.0,71199.0,0.07022274]
[1773541470221,0.05739695,71217.0,71200.0,0.07162377]
[1773541470476,0.07020697,71218.0,71201.0,0.04824624]
[1773541470599,0.07020697,71220.0,71201.0,0.04824624]
[1773541471117,0.07020697,71220.0,71203.0,0.04820363]
[1773541471939,0.07019711,71228.0,71204.0,0.07022077]
[1773541472257,0.05739695,71227.0,71205.0,0.04816066]
[1773541472413,0.05739695,71227.0,71206.0,0.04956066]
[1773541474264,0.05739695,71225.0,71207.0,0.07021781]
[1773541475679,0.07019908,71226.0,71208.0,0.04802972]
[1773541476303,0.05739695,71230.0,71210.0,0.0479854]
[1773541478376,0.07019612,71229.0,71211.0,0.07021387]
[1773541478580,0.12759307,71229.0,71211.0,0.07021387]
[1773541479315,0.05739695,71228.0,71212.0,0.0014]
[1773541480916,0.07159415,71232.0,71213.0,0.07021189]
[1773541480917,0.07019415,71232.0,71213.0,0.07021189]
[1773541481125,0.07019415,71231.0,71214.0,0.04775909]
[1773541482079,0.000351,71225.0,71214.0,0.04775909]
[1773541483080,0.000351,71225.0,71213.0,0.07021189]
[1773541483280,0.07055193,71225.0,71213.0,0.07021189]
[1773541483479,0.07055193,71225.0,71212.0,0.07161189]
[1773541483712,0.12794888,71225.0,71212.0,0.07161189]
[1773541484843,0.12794888,71225.0,71212.0,0.07021189]
[1773541485078,0.12794888,71225.0,71213.0,0.0014]
[1773541485425,0.12794888,71225.0,71214.0,0.0014]
[1773541485824,0.12816889,71225.0,71210.0,0.07021436]
[1773541486015,0.12816889,71225.0,71211.0,0.0014]
[1773541486946,0.12816889,71225.0,71212.0,0.0014]
[1773541487867,0.07077194,71225.0,71213.0,0.07021189]
[1773541488064,0.07020007,71227.0,71213.0,0.07021189]
[1773541488065,0.07019317,71232.0,71214.0,0.04742999]
[1773541488265,0.07019612,71231.0,71214.0,0.04742999]
[1773541489792,0.12759307,71231.0,71215.0,0.07020992]
[1773541493850,0.12781308,71231.0,71215.0,0.07020992]
[1773541496237,0.00022001,71231.0,71215.0,0.07020992]
[1773541496441,0.00022001,71231.0,71216.0,0.04711942]
[1773541498825,0.00022001,71231.0,71217.0,0.07020795]
[1773541499071,0.00022001,71231.0,71218.0,0.0014]
[1773541499404,0.00022001,71239.0,71220.0,0.05912794]
[1773541499606,0.00022001,71239.0,71222.0,0.11114598]
[1773541499607,0.07040654,71239.0,71222.0,0.11114598]
[1773541499941,0.07040654,71239.0,71223.0,0.04153188]
[1773541500143,0.07040654,71239.0,71224.0,0.0014]
[1773541500341,0.00022001,71239.0,71224.0,0.04288415]
[1773541500505,0.00032743,71239.0,71224.0,0.04288415]
[1773541500702,0.00032743,71239.0,71225.0,0.07020007]
[1773541500906,0.07018441,71241.0,71225.0,0.11163253]
[1773541501227,0.07018441,71241.0,71225.0,0.11173995]
[1773541501421,0.07053426,71242.0,71226.0,0.04143246]
[1773541501804,0.00035091,71242.0,71226.0,0.04143246]
[1773541503116,0.00035091,71242.0,71227.0,0.07019809]
[1773541503676,0.00057092,71242.0,71227.0,0.11153319]
[1773541504490,0.00057092,71242.0,71228.0,0.04128283]
[1773541505218,0.00057092,71242.0,71229.0,0.07019612]
[1773541505398,0.00057092,71242.0,71230.0,0.0014]
[1773541507024,0.07018186,71244.0,71231.0,0.04112497]
[1773541507340,0.07017897,71247.0,71232.0,0.250098]
[1773541507534,0.07017897,71247.0,71233.0,0.13877986]
[1773541507706,0.07017897,71247.0,71234.0,0.13877986]
[1773541507907,0.07017897,71247.0,71235.0,0.13877986]
[1773541508118,0.07017897,71247.0,71236.0,0.0014]
[1773541508504,0.07034877,71247.0,71236.0,0.0014]
[1773541509006,0.07034877,71247.0,71236.0,0.00125033]
[1773541509805,0.07034877,71247.0,71237.0,0.07018824]
[1773541512802,0.0001698,71247.0,71237.0,0.07018824]
[1773541513230,0.00022001,71250.0,71238.0,0.23856211]
[1773541513539,0.00022001,71247.0,71239.0,0.17946422]
[1773541513738,0.07017364,71252.0,71240.0,0.13865329]
[1773541514084,0.07017364,71252.0,71239.0,0.04081093]
[1773541514289,0.07017364,71252.0,71241.0,0.0701843]
[1773541514563,0.07039175,71254.0,71242.0,0.0014]
[1773541514812,0.00022001,71254.0,71242.0,0.0014]
[1773541515185,0.00022001,71254.0,71243.0,0.13860049]
[1773541515404,0.00022001,71254.0,71242.0,0.0014]
[1773541515550,0.07038884,71257.0,71243.0,0.17927858]
[1773541515551,0.00022001,71257.0,71243.0,0.17927858]
[1773541515754,0.00022001,71257.0,71244.0,0.17927858]
[1773541515952,0.00022001,71257.0,71245.0,0.13856664]
[1773541516154,0.00022001,71257.0,71244.0,0.04071194]
[1773541516336,0.00022001,71257.0,71246.0,0.07017937]
[1773541516767,0.07051653,71260.0,71246.0,0.07017937]
[1773541516768,0.00035082,71260.0,71247.0,0.17915513]
[1773541516965,0.00035082,71260.0,71248.0,0.13849363]
[1773541517220,0.07051663,71260.0,71249.0,0.13989363]
[1773541517395,0.07051676,71260.0,71249.0,0.0014]
[1773541517565,0.00035082,71260.0,71249.0,0.0014]
[1773541517922,0.00070873,71260.0,71249.0,0.0014]
[1773541518289,0.07087437,71260.0,71249.0,0.0014]
[1773541519740,0.00070873,71260.0,71250.0,0.12927332]
[1773541519965,0.02037249,71262.0,71251.0,0.04044521]
[1773541520099,0.0204798,71262.0,71251.0,0.04044521]
[1773541521130,5.501e-05,71257.0,71251.0,0.04044521]
[1773541521544,0.01999981,71262.0,71251.0,0.04044521]
[1773541521763,0.01999981,71262.0,71252.0,0.07017346]
[1773541523241,0.00022001,71265.0,71252.0,0.07017346]
[1773541523383,0.07038136,71265.0,71252.0,0.07053137]
[1773541528168,0.07038136,71265.0,71253.0,0.13843019]
[1773541528515,0.07038136,71265.0,71252.0,0.07053137]
[1773541529140,0.00022001,71265.0,71252.0,0.07053137]
[1773541529733,0.07015786,71268.0,71252.0,0.07053137]
[1773541529938,0.07015786,71268.0,71252.0,0.10796807]
[1773541530599,0.07015786,71268.0,71253.0,0.0014]
[1773541531098,0.08161591,71270.0,71253.0,0.03877413]
[1773541531297,0.01146001,71270.0,71253.0,0.03877413]
[1773541532231,0.01146001,71270.0,71254.0,0.07017149]
[1773541532594,0.08161617,71270.0,71254.0,0.07017149]
[1773541532818,0.05428582,71269.0,71254.0,0.07017149]
[1773541534902,0.07015771,71268.0,71254.0,0.07017149]
[1773541535109,0.12444353,71268.0,71254.0,0.07017149]
[1773541540264,0.12444353,71268.0,71256.0,0.07016952]
[1773541540490,0.12444353,71268.0,71257.0,0.13861364]
[1773541540671,0.12444353,71268.0,71258.0,0.13861364]
[1773541540890,0.12444353,71268.0,71259.0,0.14001364]
[1773541541037,0.12444353,71268.0,71260.0,0.13861364]
[1773541541240,0.12444353,71268.0,71261.0,0.13865629]
[1773541541446,0.05428582,71267.0,71259.0,0.0014]
[1773541541758,0.05428582,71267.0,71260.0,0.13865592]
[1773541541946,0.05428582,71267.0,71261.0,0.13865592]
[1773541542151,0.05428582,71267.0,71262.0,0.13871108]
[1773541542349,0.05428582,71267.0,71260.0,0.07016559]
[1773541542577,0.05428582,71267.0,71261.0,0.13871099]
[1773541542797,0.05428582,71267.0,71262.0,0.13871099]
[1773541543050,0.05428582,71267.0,71260.0,0.07016559]
[1773541543229,0.05428582,71267.0,71261.0,0.13876852]
[1773541543420,0.05428582,71267.0,71262.0,0.13876852]
[1773541543600,0.05428582,71267.0,71260.0,0.07016559]
[1773541544416,0.05428582,71267.0,71260.0,0.07001594]
[1773541545565,0.05428582,71267.0,71260.0,0.0698663]
[1773541551401,0.05428582,71267.0,71260.0,0.06971666]
[1773541554574,0.00022001,71268.0,71260.0,0.06971666]
[1773541554776,0.08161581,71270.0,71260.0,0.06971666]
[1773541555625,0.08161581,71270.0,71261.0,0.13897038]
[1773541555810,0.01146001,71270.0,71262.0,0.13897038]
[1773541555999,0.01146001,71270.0,71263.0,0.13897038]
[1773541556202,0.01146001,71270.0,71264.0,0.13897038]
[1773541556409,0.07042077,71276.0,71260.0,0.06971666]
[1773541556410,0.07042077,71276.0,71265.0,0.13897038]
[1773541556586,0.07042077,71276.0,71260.0,0.28396529]
[1773541556587,0.07042077,71276.0,71266.0,0.21052952]
[1773541556796,0.07042077,71276.0,71267.0,0.13897038]
[1773541556989,0.07042077,71276.0,71268.0,0.13897038]
[1773541557338,0.07042077,71276.0,71269.0,0.13897038]
[1773541557498,0.07042077,71276.0,71266.0,0.07155914]
[1773541557499,0.07042077,71276.0,71270.0,0.13897038]
[1773541557704,0.053987,71275.0,71271.0,0.13897038]
[1773541557919,0.053987,71275.0,71266.0,0.0014953]
[1773541558095,0.053987,71275.0,71267.0,0.13894769]
[1773541558315,0.053987,71273.0,71253.0,0.07060203]
[1773541558527,0.053987,71269.0,71254.0,0.0014]
[1773541558728,0.053987,71267.0,71255.0,0.0715698]
[1773541558970,0.053987,71267.0,71260.0,0.0002]
[1773541559255,0.053987,71267.0,71261.0,0.0014]
[1773541559990,0.053987,71267.0,71260.0,0.0002]